[Event "*** Titled Tuesday Blitz"]
[Site "Chess.com"]
[Date "2020.10.27"]
[Round "9"]
[White "KacperPolOK"]
[Black "PavelShkapenko"]
[Result "1-0"]
[WhiteElo "2440"]
[BlackElo "2633"]
[TimeControl "180+1"]
[EndTime "11:47:25 PDT"]
[Termination "KacperPolOK won by resignation"]

1. e4 {[%clk 0:02:59.7]} 1... e5 {[%clk 0:02:59.6]} 2. Nf3 {[%clk 0:02:58.9]}
2... Nc6 {[%clk 0:03:00.1]} 3. Bb5 {[%clk 0:02:58.1]} 3... Bc5 {[%clk
0:02:59.7]} 4. Nxe5 {[%clk 0:02:56.1]} 4... Nd4 {[%clk 0:02:57.3]} 5. Bc4 {[%clk
0:02:47]} 5... Qg5 {[%clk 0:02:57.3]} 6. Bxf7+ {[%clk 0:01:37.4]} 6... Ke7
{[%clk 0:02:26.1]} 7. O-O {[%clk 0:01:36.3]} 7... Qxe5 {[%clk 0:02:19.8]} 8.
Bxg8 {[%clk 0:01:36.3]} 8... Rxg8 {[%clk 0:02:17.3]} 9. c3 {[%clk 0:01:36.3]}
9... Ne6 {[%clk 0:01:50.2]} 10. d4 {[%clk 0:01:23]} 10... Nxd4 {[%clk
0:01:50.2]} 11. cxd4 {[%clk 0:01:22.6]} 11... Qxd4 {[%clk 0:01:50.7]} 12. Qb3
{[%clk 0:01:12]} 12... Rf8 {[%clk 0:01:43]} 13. Bg5+ {[%clk 0:01:11.8]} 13...
Ke8 {[%clk 0:01:42.3]} 14. Nc3 {[%clk 0:01:10.3]} 14... Qe5 {[%clk 0:01:19.5]}
15. Bh4 {[%clk 0:01:03.8]} 15... d6 {[%clk 0:01:17.8]} 16. Bg3 {[%clk
0:01:01.1]} 16... Qe7 {[%clk 0:01:12]} 17. Kh1 {[%clk 0:00:59.8]} 17... Be6
{[%clk 0:01:06.9]} 18. Qxb7 {[%clk 0:00:59.1]} 18... Kf7 {[%clk 0:01:06.6]} 19.
Nd5 {[%clk 0:00:57.6]} 19... Bxd5 {[%clk 0:01:01.7]} 20. Qxd5+ {[%clk
0:00:52.4]} 20... Qe6 {[%clk 0:01:01.6]} 21. Qc6 {[%clk 0:00:50.9]} 21... Kg8
{[%clk 0:00:59.6]} 22. f4 {[%clk 0:00:46.8]} 22... Rae8 {[%clk 0:00:45]} 23.
Rae1 {[%clk 0:00:46]} 23... Qxa2 {[%clk 0:00:43.3]} 24. Re2 {[%clk 0:00:36.9]}
24... Qc4 {[%clk 0:00:42.1]} 25. Rfe1 {[%clk 0:00:34.5]} 25... Re7 {[%clk
0:00:35.7]} 26. Qd5+ {[%clk 0:00:33.4]} 26... Qxd5 {[%clk 0:00:35.2]} 27. exd5
{[%clk 0:00:34.3]} 27... Rxe2 {[%clk 0:00:35.3]} 28. Rxe2 {[%clk 0:00:34.6]}
28... Kf7 {[%clk 0:00:35.8]} 29. Bh4 {[%clk 0:00:30.3]} 29... Rb8 {[%clk
0:00:34.4]} 30. g4 {[%clk 0:00:28.3]} 30... Re8 {[%clk 0:00:26.1]} 31. Rxe8
{[%clk 0:00:27.9]} 31... Kxe8 {[%clk 0:00:26.6]} 32. Kg2 {[%clk 0:00:28.8]}
32... Kd7 {[%clk 0:00:27.2]} 33. Kf3 {[%clk 0:00:28.2]} 33... Bd4 {[%clk
0:00:25.2]} 34. b3 {[%clk 0:00:27.6]} 34... c6 {[%clk 0:00:24.8]} 35. Ke4 {[%clk
0:00:27.9]} 35... Bg1 {[%clk 0:00:24.1]} 36. h3 {[%clk 0:00:27.6]} 36... Bh2
{[%clk 0:00:22.9]} 37. f5 {[%clk 0:00:25.9]} 37... Bg1 {[%clk 0:00:22.8]} 38.
Be1 {[%clk 0:00:24.8]} 38... g6 {[%clk 0:00:19.8]} 39. fxg6 {[%clk 0:00:23.5]}
39... hxg6 {[%clk 0:00:19.9]} 40. h4 {[%clk 0:00:23.9]} 40... Bh2 {[%clk
0:00:20]} 41. h5 {[%clk 0:00:22.5]} 41... gxh5 {[%clk 0:00:19.7]} 42. gxh5
{[%clk 0:00:23.4]} 42... Be5 {[%clk 0:00:19.8]} 43. Bd2 {[%clk 0:00:16.2]} 43...
cxd5+ {[%clk 0:00:19.5]} 44. Kxd5 {[%clk 0:00:16.4]} 44... Ke7 {[%clk 0:00:20]}
45. Be3 {[%clk 0:00:16.5]} 45... a6 {[%clk 0:00:18.7]} 46. Bd4 {[%clk
0:00:16.9]} 46... Bf4 {[%clk 0:00:18.2]} 47. Kc6 {[%clk 0:00:14.9]} 47... Ke6
{[%clk 0:00:17.8]} 48. Kb6 {[%clk 0:00:14]} 48... Be5 {[%clk 0:00:17.9]} 49. Be3
{[%clk 0:00:12.7]} 49... d5 {[%clk 0:00:18.1]} 50. Kxa6 {[%clk 0:00:13.1]} 50...
d4 {[%clk 0:00:18.4]} 51. Bd2 {[%clk 0:00:13.7]} 51... Kf5 {[%clk 0:00:17.9]}
52. Kb5 {[%clk 0:00:13.2]} 52... Bf4 {[%clk 0:00:16.1]} 53. Bxf4 {[%clk
0:00:12.2]} 53... Kxf4 {[%clk 0:00:16.6]} 54. h6 {[%clk 0:00:12.8]} 54... d3
{[%clk 0:00:17]} 55. h7 {[%clk 0:00:13.4]} 55... d2 {[%clk 0:00:17.4]} 56. h8=Q
{[%clk 0:00:14]} 56... d1=Q {[%clk 0:00:17.4]} 57. Qc3 {[%clk 0:00:14.2]} 57...
Qd7+ {[%clk 0:00:14.4]} 58. Qc6 {[%clk 0:00:13.8]} 58... Qh3 {[%clk 0:00:13.7]}
59. b4 {[%clk 0:00:13.7]} 59... Ke5 {[%clk 0:00:13.5]} 60. Qc5+ {[%clk
0:00:13.7]} 60... Kf6 {[%clk 0:00:12.9]} 61. Ka6 {[%clk 0:00:12.8]} 61... Qa3+
{[%clk 0:00:11.6]} 62. Kb7 {[%clk 0:00:12.4]} 62... Ke6 {[%clk 0:00:10.8]} 63.
Qc6+ {[%clk 0:00:12.4]} 63... Ke7 {[%clk 0:00:10.6]} 64. b5 {[%clk 0:00:12.5]}
64... Qa4 {[%clk 0:00:10.5]} 65. b6 {[%clk 0:00:11.7]} 65... Qa5 {[%clk
0:00:09.3]} 66. Qc7+ {[%clk 0:00:10.7]} 66... Ke6 {[%clk 0:00:09.3]} 67. Qc6+
{[%clk 0:00:10.2]} 67... Ke7 {[%clk 0:00:09.5]} 68. Qe4+ {[%clk 0:00:09.5]}
68... Kd7 {[%clk 0:00:09.1]} 69. Qd4+ {[%clk 0:00:09.9]} 69... Ke7 {[%clk
0:00:09.3]} 70. Kc6 {[%clk 0:00:10.1]} 70... Qa8+ {[%clk 0:00:07.3]} 71. b7
{[%clk 0:00:10.2]} 71... Qb8 {[%clk 0:00:06.4]} 72. Kb6 {[%clk 0:00:07.8]} 72...
Ke6 {[%clk 0:00:05.8]} 73. Qc4+ {[%clk 0:00:07.2]} 73... Kd7 {[%clk 0:00:05.3]}
74. Qc6+ {[%clk 0:00:07.1]} 74... Ke7 {[%clk 0:00:05]} 75. Qc7+ {[%clk
0:00:07.1]} 1-0

[Event "*** Titled Tuesday Blitz"]
[Site "Chess.com"]
[Date "2020.10.27"]
[Round "9"]
[White "Gerodot71"]
[Black "katchesskat"]
[Result "1-0"]
[WhiteElo "2482"]
[BlackElo "2262"]
[TimeControl "180+1"]
[EndTime "11:47:26 PDT"]
[Termination "Gerodot71 won by resignation"]

1. d4 {[%clk 0:03:00.9]} 1... c5 {[%clk 0:03:00.9]} 2. d5 {[%clk 0:03:00.1]}
2... e5 {[%clk 0:03:00.6]} 3. e4 {[%clk 0:02:59.2]} 3... a6 {[%clk 0:03:00.7]}
4. a4 {[%clk 0:02:58.8]} 4... d6 {[%clk 0:03:00.7]} 5. Nc3 {[%clk 0:02:58.9]}
5... Ne7 {[%clk 0:03:00.1]} 6. g3 {[%clk 0:02:53.8]} 6... Ng6 {[%clk 0:02:58.8]}
7. h4 {[%clk 0:02:52.4]} 7... Be7 {[%clk 0:02:59]} 8. Bg2 {[%clk 0:02:49.9]}
8... h6 {[%clk 0:02:58.9]} 9. Nge2 {[%clk 0:02:49.4]} 9... Bg4 {[%clk
0:02:55.7]} 10. Be3 {[%clk 0:02:45.6]} 10... b6 {[%clk 0:02:50.7]} 11. Qd2
{[%clk 0:02:41.6]} 11... Bxe2 {[%clk 0:02:46.4]} 12. Qxe2 {[%clk 0:02:40.4]}
12... O-O {[%clk 0:02:43.8]} 13. O-O {[%clk 0:02:39.3]} 13... Re8 {[%clk
0:02:39.7]} 14. h5 {[%clk 0:02:29.3]} 14... Nf8 {[%clk 0:02:39.1]} 15. f4 {[%clk
0:02:29]} 15... Nbd7 {[%clk 0:02:38.3]} 16. Bh3 {[%clk 0:02:23.3]} 16... Bf6
{[%clk 0:02:35.9]} 17. Bd2 {[%clk 0:02:06.9]} 17... exf4 {[%clk 0:02:27.6]} 18.
gxf4 {[%clk 0:02:07.8]} 18... Bd4+ {[%clk 0:02:27.4]} 19. Kh2 {[%clk 0:02:03.1]}
19... Qh4 {[%clk 0:02:27]} 20. Rg1 {[%clk 0:01:51.2]} 20... Nf6 {[%clk
0:02:14.6]} 21. Raf1 {[%clk 0:01:41.9]} 21... N8h7 {[%clk 0:02:13]} 22. Qf3
{[%clk 0:01:35]} 22... Qxh5 {[%clk 0:02:02.8]} 23. Qxh5 {[%clk 0:01:22.2]} 23...
Nxh5 {[%clk 0:02:02.4]} 24. Rg2 {[%clk 0:01:23.1]} 24... N5f6 {[%clk 0:01:56.1]}
25. Re1 {[%clk 0:01:11]} 25... g6 {[%clk 0:01:48.2]} 26. Rge2 {[%clk 0:01:04.5]}
26... h5 {[%clk 0:01:41]} 27. Kg3 {[%clk 0:00:59.3]} 27... Rad8 {[%clk
0:01:20.3]} 28. Bg2 {[%clk 0:00:58.1]} 28... Ng4 {[%clk 0:01:17.2]} 29. Nd1
{[%clk 0:00:53.9]} 29... b5 {[%clk 0:01:08.3]} 30. c3 {[%clk 0:00:53.9]} 30...
Bg7 {[%clk 0:01:07]} 31. axb5 {[%clk 0:00:53.9]} 31... axb5 {[%clk 0:01:07]} 32.
Bf3 {[%clk 0:00:44.8]} 32... Nh6 {[%clk 0:01:02.1]} 33. Nf2 {[%clk 0:00:41.1]}
33... Ra8 {[%clk 0:01:00.8]} 34. Nd3 {[%clk 0:00:40.5]} 34... Ra2 {[%clk
0:00:58.8]} 35. Bc1 {[%clk 0:00:38.8]} 35... Ra4 {[%clk 0:00:38.5]} 36. Kh3
{[%clk 0:00:35.2]} 36... b4 {[%clk 0:00:36.3]} 37. cxb4 {[%clk 0:00:32.9]} 37...
c4 {[%clk 0:00:36]} 38. Nf2 {[%clk 0:00:25.2]} 38... Rxb4 {[%clk 0:00:36.1]} 39.
e5 {[%clk 0:00:25.7]} 39... Rb3 {[%clk 0:00:19.4]} 40. Re3 {[%clk 0:00:17.5]}
40... Rxe3 {[%clk 0:00:17.7]} 41. Rxe3 {[%clk 0:00:18.4]} 41... Nf5 {[%clk
0:00:18.1]} 42. Rc3 {[%clk 0:00:15.2]} 42... dxe5 {[%clk 0:00:18.1]} 43. Rxc4
{[%clk 0:00:14.6]} 43... exf4 {[%clk 0:00:18.4]} 44. Bxf4 {[%clk 0:00:15]} 44...
Nf6 {[%clk 0:00:18.4]} 45. d6 {[%clk 0:00:13.6]} 45... Rd8 {[%clk 0:00:17.8]}
46. Rc2 {[%clk 0:00:11.2]} 46... Ne8 {[%clk 0:00:12.2]} 47. Rd2 {[%clk
0:00:09.4]} 47... Nexd6 {[%clk 0:00:11.7]} 48. Ne4 {[%clk 0:00:08.9]} 48... Bf8
{[%clk 0:00:11.5]} 49. Ng5 {[%clk 0:00:07.8]} 49... Rb8 {[%clk 0:00:10.2]} 50.
Kh2 {[%clk 0:00:05.6]} 50... Rb3 {[%clk 0:00:10]} 51. Bg2 {[%clk 0:00:05.3]}
51... Nc4 {[%clk 0:00:09.4]} 52. Rd8 {[%clk 0:00:03.6]} 52... Kg7 {[%clk
0:00:09.2]} 53. Nf3 {[%clk 0:00:03.1]} 53... Be7 {[%clk 0:00:09]} 54. Re8 {[%clk
0:00:02.8]} 54... Bf6 {[%clk 0:00:09.1]} 55. Re2 {[%clk 0:00:01.6]} 55... Rxb2
{[%clk 0:00:08.6]} 56. Re1 {[%clk 0:00:02.5]} 56... Rf2 {[%clk 0:00:07.6]} 57.
Kg1 {[%clk 0:00:02.4]} 57... Ra2 {[%clk 0:00:07.2]} 58. Bg3 {[%clk 0:00:02.6]}
58... Nd2 {[%clk 0:00:07.1]} 59. Bf2 {[%clk 0:00:03.5]} 59... Nxf3+ {[%clk
0:00:06.3]} 60. Bxf3 {[%clk 0:00:04.4]} 60... h4 {[%clk 0:00:06.7]} 61. Rf1
{[%clk 0:00:03.4]} 61... g5 {[%clk 0:00:06.8]} 62. Bd5 {[%clk 0:00:02.1]} 62...
Ne7 {[%clk 0:00:05.5]} 63. Bxa2 {[%clk 0:00:02.2]} 63... Ng6 {[%clk 0:00:05.7]}
64. Kg2 {[%clk 0:00:03.1]} 64... Nf4+ {[%clk 0:00:05.7]} 65. Kf3 {[%clk
0:00:04]} 65... Kg6 {[%clk 0:00:06.1]} 66. Be3 {[%clk 0:00:04.5]} 66... Kf5
{[%clk 0:00:05.9]} 67. Bb1+ {[%clk 0:00:05.4]} 67... Ke5 {[%clk 0:00:05.5]} 68.
Bxf4+ {[%clk 0:00:06.3]} 68... gxf4 {[%clk 0:00:05.9]} 69. Re1+ {[%clk 0:00:07]}
69... Kd6 {[%clk 0:00:05.9]} 70. Kxf4 {[%clk 0:00:07.4]} 70... h3 {[%clk
0:00:05.3]} 71. Rh1 {[%clk 0:00:07.3]} 71... Be5+ {[%clk 0:00:05.1]} 72. Kf5
{[%clk 0:00:07]} 72... h2 {[%clk 0:00:05.5]} 73. Rd1+ {[%clk 0:00:07.2]} 73...
Ke7 {[%clk 0:00:03.2]} 74. Kxe5 {[%clk 0:00:07.4]} 74... f6+ {[%clk 0:00:03.7]}
75. Kf5 {[%clk 0:00:07.6]} 75... Kf7 {[%clk 0:00:04.3]} 76. Rh1 {[%clk
0:00:08.3]} 76... Ke7 {[%clk 0:00:05.2]} 77. Rxh2 {[%clk 0:00:09.2]} 77... Kd6
{[%clk 0:00:05.9]} 78. Re2 {[%clk 0:00:08.6]} 78... Kc5 {[%clk 0:00:06.8]} 79.
Kxf6 {[%clk 0:00:09.5]} 1-0

[Event "*** Titled Tuesday Blitz"]
[Site "Chess.com"]
[Date "2020.10.27"]
[Round "9"]
[White "TokChess"]
[Black "Kavyev_Ruslan"]
[Result "1-0"]
[WhiteElo "2446"]
[BlackElo "2556"]
[TimeControl "180+1"]
[EndTime "11:48:02 PDT"]
[Termination "TokChess won by checkmate"]

1. c4 {[%clk 0:02:59.1]} 1... d5 {[%clk 0:02:58.7]} 2. cxd5 {[%clk 0:02:58.4]}
2... Qxd5 {[%clk 0:02:59.6]} 3. Nc3 {[%clk 0:02:58.7]} 3... Qa5 {[%clk
0:03:00.3]} 4. Nf3 {[%clk 0:02:58.8]} 4... Nf6 {[%clk 0:02:59.7]} 5. g3 {[%clk
0:02:58]} 5... c6 {[%clk 0:02:56.9]} 6. Bg2 {[%clk 0:02:58.2]} 6... Bg4 {[%clk
0:02:53.5]} 7. O-O {[%clk 0:02:57.5]} 7... Nbd7 {[%clk 0:02:53.1]} 8. d3 {[%clk
0:02:55.6]} 8... e6 {[%clk 0:02:51.2]} 9. Bd2 {[%clk 0:02:55.4]} 9... Qc7 {[%clk
0:02:48.3]} 10. Rc1 {[%clk 0:02:54.9]} 10... a6 {[%clk 0:02:48.1]} 11. Bf4
{[%clk 0:02:53]} 11... Bd6 {[%clk 0:02:47.6]} 12. Bxd6 {[%clk 0:02:53.2]} 12...
Qxd6 {[%clk 0:02:48.5]} 13. Qb3 {[%clk 0:02:53.7]} 13... b5 {[%clk 0:02:26.7]}
14. Nd2 {[%clk 0:02:49.7]} 14... Bxe2 {[%clk 0:02:06.7]} 15. Nxe2 {[%clk
0:02:44.9]} 15... Rc8 {[%clk 0:02:02.2]} 16. Ne4 {[%clk 0:02:41.2]} 16... Qe7
{[%clk 0:02:01.7]} 17. Nxf6+ {[%clk 0:02:39.5]} 17... Nxf6 {[%clk 0:01:58.8]}
18. Bxc6+ {[%clk 0:02:36.2]} 18... Kf8 {[%clk 0:01:57.2]} 19. Bf3 {[%clk
0:02:30.1]} 19... Rd8 {[%clk 0:01:54.4]} 20. Rc6 {[%clk 0:02:25.2]} 20... h5
{[%clk 0:01:53.7]} 21. Rfc1 {[%clk 0:02:24.9]} 21... h4 {[%clk 0:01:54.2]} 22.
Rc7 {[%clk 0:02:24.3]} 22... Qd6 {[%clk 0:01:54.4]} 23. d4 {[%clk 0:02:04.6]}
23... h3 {[%clk 0:01:49.4]} 24. Rc8 {[%clk 0:01:47.9]} 24... g6 {[%clk
0:01:47.2]} 25. R1c6 {[%clk 0:01:36.7]} 25... Qd7 {[%clk 0:01:46.7]} 26. R8c7
{[%clk 0:01:34.7]} 26... Qe8 {[%clk 0:01:45.1]} 27. Qe3 {[%clk 0:01:30.1]} 27...
Rd7 {[%clk 0:01:23.8]} 28. Qe5 {[%clk 0:01:22]} 28... Kg7 {[%clk 0:01:21.9]} 29.
Nc3 {[%clk 0:01:04.6]} 29... Rxc7 {[%clk 0:01:12.3]} 30. Rxc7 {[%clk 0:01:04]}
30... Qd8 {[%clk 0:00:31.9]} 31. Ne4 {[%clk 0:00:58.2]} 31... Rh6 {[%clk
0:00:25]} 32. Qxf6+ {[%clk 0:00:21.7]} 32... Qxf6 {[%clk 0:00:24.2]} 33. Nxf6
{[%clk 0:00:22.2]} 33... Kxf6 {[%clk 0:00:25.1]} 34. Kf1 {[%clk 0:00:20.6]}
34... Rh8 {[%clk 0:00:24.3]} 35. Ke2 {[%clk 0:00:20.1]} 35... Rd8 {[%clk
0:00:24.4]} 36. Ke3 {[%clk 0:00:20.2]} 36... e5 {[%clk 0:00:23.3]} 37. Rc6+
{[%clk 0:00:19.6]} 37... Kf5 {[%clk 0:00:22.3]} 38. Be4+ {[%clk 0:00:18.8]}
38... Kg5 {[%clk 0:00:21.1]} 39. dxe5 {[%clk 0:00:18.8]} 39... Rd1 {[%clk
0:00:20.1]} 40. f4+ {[%clk 0:00:18.7]} 40... Kh6 {[%clk 0:00:19.8]} 41. Rc2
{[%clk 0:00:17.2]} 41... Rg1 {[%clk 0:00:18.8]} 42. g4 {[%clk 0:00:16.8]} 42...
Rxg4 {[%clk 0:00:18.5]} 43. Kf3 {[%clk 0:00:16.6]} 43... Rg1 {[%clk 0:00:18.7]}
44. Kf2 {[%clk 0:00:15.5]} 44... Rg4 {[%clk 0:00:17.1]} 45. Bf3 {[%clk
0:00:14.8]} 45... Rxf4 {[%clk 0:00:16.7]} 46. Kg3 {[%clk 0:00:15.3]} 46... Rf5
{[%clk 0:00:17.2]} 47. Re2 {[%clk 0:00:15.4]} 47... g5 {[%clk 0:00:16.3]} 48.
Bg4 {[%clk 0:00:14.5]} 48... Rf4 {[%clk 0:00:16.7]} 49. Bxh3 {[%clk 0:00:14.6]}
49... Rb4 {[%clk 0:00:17.3]} 50. Bg4 {[%clk 0:00:14.7]} 50... Kg6 {[%clk
0:00:17.7]} 51. h3 {[%clk 0:00:14.7]} 51... Rd4 {[%clk 0:00:17.7]} 52. Re3
{[%clk 0:00:14.6]} 52... Rd2 {[%clk 0:00:17.9]} 53. e6 {[%clk 0:00:14.5]} 53...
fxe6 {[%clk 0:00:12.9]} 54. Rxe6+ {[%clk 0:00:15]} 54... Kf7 {[%clk 0:00:13.8]}
55. Rxa6 {[%clk 0:00:15.5]} 55... Rxb2 {[%clk 0:00:14.4]} 56. Bf5 {[%clk
0:00:15.8]} 56... Rb4 {[%clk 0:00:12.2]} 57. Bg4 {[%clk 0:00:13.7]} 57... Rb2
{[%clk 0:00:12.2]} 58. Bf3 {[%clk 0:00:14]} 58... Rb4 {[%clk 0:00:12]} 59. Bd5+
{[%clk 0:00:13.3]} 59... Kg7 {[%clk 0:00:11.9]} 60. Bb3 {[%clk 0:00:13.6]} 60...
Rd4 {[%clk 0:00:12.4]} 61. Rc6 {[%clk 0:00:13.8]} 61... b4 {[%clk 0:00:12.1]}
62. Rc5 {[%clk 0:00:14.1]} 62... Kf6 {[%clk 0:00:12.5]} 63. Rb5 {[%clk
0:00:14.5]} 63... Kg6 {[%clk 0:00:11.9]} 64. Rb6+ {[%clk 0:00:15]} 64... Kg7
{[%clk 0:00:11.8]} 65. Rc6 {[%clk 0:00:14.4]} 65... Rd3+ {[%clk 0:00:09.6]} 66.
Kg4 {[%clk 0:00:14.5]} 66... Re3 {[%clk 0:00:08.4]} 67. Rc7+ {[%clk 0:00:14]}
67... Kf6 {[%clk 0:00:08.2]} 68. Rc6+ {[%clk 0:00:14.5]} 68... Ke5 {[%clk
0:00:08.2]} 69. Rc4 {[%clk 0:00:15.1]} 69... Kf6 {[%clk 0:00:07.9]} 70. Rxb4
{[%clk 0:00:15.3]} 70... Re2 {[%clk 0:00:08.5]} 71. Rb6+ {[%clk 0:00:15.5]}
71... Ke5 {[%clk 0:00:08.5]} 72. Rb5+ {[%clk 0:00:16]} 72... Kd4 {[%clk
0:00:08.9]} 73. Kxg5 {[%clk 0:00:15.4]} 73... Rh2 {[%clk 0:00:08.8]} 74. Kg4
{[%clk 0:00:15.2]} 74... Ke4 {[%clk 0:00:09.7]} 75. Rb4+ {[%clk 0:00:14.9]}
75... Kd3 {[%clk 0:00:09.7]} 76. Rb8 {[%clk 0:00:15.3]} 76... Kc3 {[%clk
0:00:10.2]} 77. Rf8 {[%clk 0:00:14.8]} 77... Kd4 {[%clk 0:00:10.6]} 78. Rf3
{[%clk 0:00:14.5]} 78... Ke5 {[%clk 0:00:10.8]} 79. Rf1 {[%clk 0:00:14.7]} 79...
Rg2+ {[%clk 0:00:11]} 80. Kf3 {[%clk 0:00:14.5]} 80... Rg7 {[%clk 0:00:11.4]}
81. h4 {[%clk 0:00:14.8]} 81... Rh7 {[%clk 0:00:11.4]} 82. Rh1 {[%clk
0:00:14.3]} 82... Kf6 {[%clk 0:00:11.6]} 83. h5 {[%clk 0:00:14.6]} 83... Kg5
{[%clk 0:00:12.1]} 84. h6 {[%clk 0:00:14.9]} 84... Kf6 {[%clk 0:00:09.3]} 85.
Ke4 {[%clk 0:00:15.1]} 85... Ke7 {[%clk 0:00:07.7]} 86. Kd5 {[%clk 0:00:15.2]}
86... Kd8 {[%clk 0:00:08]} 87. Ke5 {[%clk 0:00:15.3]} 87... Ke7 {[%clk
0:00:08.4]} 88. Kf5 {[%clk 0:00:15.5]} 88... Rh8 {[%clk 0:00:06.4]} 89. h7
{[%clk 0:00:15.3]} 89... Kf8 {[%clk 0:00:06.3]} 90. Bg8 {[%clk 0:00:12.8]} 90...
Kg7 {[%clk 0:00:06.6]} 91. Kg5 {[%clk 0:00:12.3]} 91... Kf8 {[%clk 0:00:06.7]}
92. Kg6 {[%clk 0:00:12.1]} 92... Ke7 {[%clk 0:00:07]} 93. Kg7 {[%clk 0:00:12.5]}
93... Rxg8+ {[%clk 0:00:07.5]} 94. hxg8=Q {[%clk 0:00:12.1]} 94... Kd6 {[%clk
0:00:08.4]} 95. Rd1+ {[%clk 0:00:11.5]} 95... Kc6 {[%clk 0:00:08.7]} 96. Qd5+
{[%clk 0:00:11.3]} 96... Kb6 {[%clk 0:00:09.4]} 97. Rb1+ {[%clk 0:00:11.1]}
97... Ka7 {[%clk 0:00:10.3]} 98. Qb7# {[%clk 0:00:10.1]} 1-0

[Event "*** Titled Tuesday Blitz"]
[Site "Chess.com"]
[Date "2020.10.27"]
[Round "10"]
[White "PhileKhoob"]
[Black "ChelsieMonica"]
[Result "1-0"]
[WhiteElo "2465"]
[BlackElo "2336"]
[TimeControl "180+1"]
[EndTime "11:50:03 PDT"]
[Termination "PhileKhoob won by resignation"]

1. e4 {[%clk 0:03:00.9]} 1... e6 {[%clk 0:03:00.4]} 2. d4 {[%clk 0:03:00.7]}
2... d5 {[%clk 0:03:01.2]} 3. e5 {[%clk 0:03:01.6]} 3... c5 {[%clk 0:03:01.3]}
4. c3 {[%clk 0:03:02.5]} 4... cxd4 {[%clk 0:03:01.6]} 5. cxd4 {[%clk 0:03:02]}
5... Nc6 {[%clk 0:03:02.5]} 6. Nf3 {[%clk 0:03:02.6]} 6... Bb4+ {[%clk
0:03:02.7]} 7. Nc3 {[%clk 0:03:02.6]} 7... Bxc3+ {[%clk 0:03:03.1]} 8. bxc3
{[%clk 0:03:02.7]} 8... Nge7 {[%clk 0:03:04]} 9. Bd3 {[%clk 0:03:03]} 9... O-O
{[%clk 0:03:04.2]} 10. O-O {[%clk 0:03:03.5]} 10... Ng6 {[%clk 0:03:04.2]} 11.
g3 {[%clk 0:03:01.3]} 11... f5 {[%clk 0:03:03.8]} 12. exf6 {[%clk 0:02:59.8]}
12... Qxf6 {[%clk 0:03:00.7]} 13. Kg2 {[%clk 0:02:54.9]} 13... e5 {[%clk
0:02:54.6]} 14. dxe5 {[%clk 0:02:55.1]} 14... h6 {[%clk 0:02:55.5]} 15. exf6
{[%clk 0:02:54.6]} 1-0

[Event "*** Titled Tuesday Blitz"]
[Site "Chess.com"]
[Date "2020.10.27"]
[Round "10"]
[White "crescentmoon2411"]
[Black "RaunakSadhwani2005"]
[Result "1/2-1/2"]
[WhiteElo "2891"]
[BlackElo "2974"]
[TimeControl "180+1"]
[EndTime "11:51:27 PDT"]
[Termination "Game drawn by agreement"]

1. d4 {[%clk 0:02:59.2]} 1... d5 {[%clk 0:03:00.4]} 2. Nf3 {[%clk 0:02:59.4]}
2... Nf6 {[%clk 0:03:00.4]} 3. c4 {[%clk 0:02:58.9]} 3... c6 {[%clk 0:03:00.7]}
4. cxd5 {[%clk 0:02:57.7]} 4... cxd5 {[%clk 0:03:01.6]} 5. Nc3 {[%clk
0:02:58.1]} 5... Nc6 {[%clk 0:03:02.2]} 6. Bf4 {[%clk 0:02:57.9]} 6... Bf5
{[%clk 0:03:02.7]} 7. e3 {[%clk 0:02:57.6]} 7... e6 {[%clk 0:03:03.2]} 8. Be2
{[%clk 0:02:56.8]} 8... Bd6 {[%clk 0:03:02.1]} 9. Bxd6 {[%clk 0:02:55.6]} 9...
Qxd6 {[%clk 0:03:03]} 10. O-O {[%clk 0:02:55.5]} 10... O-O {[%clk 0:03:03.5]}
11. Rc1 {[%clk 0:02:54.8]} 11... Rfc8 {[%clk 0:03:00.6]} 12. Ne1 {[%clk
0:02:29.6]} 12... Ne4 {[%clk 0:02:43.9]} 13. Nd3 {[%clk 0:02:05.7]} 13... Nxc3
{[%clk 0:02:41.9]} 14. Rxc3 {[%clk 0:02:06.6]} 14... Bxd3 {[%clk 0:02:27]} 15.
Bxd3 {[%clk 0:02:00.5]} 1/2-1/2

[Event "*** Titled Tuesday Blitz"]
[Site "Chess.com"]
[Date "2020.10.27"]
[Round "10"]
[White "anon102030"]
[Black "venus02"]
[Result "1-0"]
[WhiteElo "2736"]
[BlackElo "2509"]
[TimeControl "180+1"]
[EndTime "11:51:56 PDT"]
[Termination "anon102030 won by resignation"]

1. e4 {[%clk 0:03:00.9]} 1... c5 {[%clk 0:02:59.3]} 2. Nc3 {[%clk 0:03:01]} 2...
a6 {[%clk 0:02:57.4]} 3. g3 {[%clk 0:03:01.9]} 3... Nc6 {[%clk 0:02:56.7]} 4.
Bg2 {[%clk 0:03:02.8]} 4... b5 {[%clk 0:02:56.3]} 5. d3 {[%clk 0:03:03.7]} 5...
Rb8 {[%clk 0:02:54.4]} 6. Be3 {[%clk 0:03:03.3]} 6... d6 {[%clk 0:02:53.6]} 7.
f4 {[%clk 0:03:02.6]} 7... h5 {[%clk 0:02:48.2]} 8. Nf3 {[%clk 0:03:02.1]} 8...
Bg4 {[%clk 0:02:43.6]} 9. h3 {[%clk 0:03:00.6]} 9... Bxf3 {[%clk 0:02:42.9]} 10.
Qxf3 {[%clk 0:03:01.1]} 10... Nd4 {[%clk 0:02:39.8]} 11. Qf2 {[%clk 0:03:01]}
11... e5 {[%clk 0:02:29.3]} 12. O-O {[%clk 0:02:57.1]} 12... Nf6 {[%clk
0:02:23.4]} 13. fxe5 {[%clk 0:02:20.7]} 13... dxe5 {[%clk 0:02:23.1]} 14. Bg5
{[%clk 0:02:20.5]} 14... Be7 {[%clk 0:02:21.3]} 15. Nd5 {[%clk 0:02:20.1]} 15...
Nxc2 {[%clk 0:01:49.3]} 16. Bxf6 {[%clk 0:02:12.6]} 1-0

[Event "*** Titled Tuesday Blitz"]
[Site "Chess.com"]
[Date "2020.10.27"]
[Round "10"]
[White "Jungle_Jaguar"]
[Black "LileKoridze"]
[Result "1-0"]
[WhiteElo "2614"]
[BlackElo "2377"]
[TimeControl "180+1"]
[EndTime "11:51:58 PDT"]
[Termination "Jungle_Jaguar won by resignation"]

1. e4 {[%clk 0:03:00.9]} 1... c5 {[%clk 0:03:00]} 2. Nf3 {[%clk 0:03:01]} 2...
d6 {[%clk 0:02:59.3]} 3. d4 {[%clk 0:03:01.3]} 3... cxd4 {[%clk 0:02:59.6]} 4.
Nxd4 {[%clk 0:03:01.7]} 4... Nf6 {[%clk 0:02:59.7]} 5. Nc3 {[%clk 0:03:02.1]}
5... Nc6 {[%clk 0:02:59.7]} 6. Bc4 {[%clk 0:03:01]} 6... e6 {[%clk 0:02:59.7]}
7. Be3 {[%clk 0:03:00.7]} 7... a6 {[%clk 0:03:00.3]} 8. Qe2 {[%clk 0:03:00.4]}
8... Be7 {[%clk 0:02:59.3]} 9. O-O-O {[%clk 0:02:57.7]} 9... Qc7 {[%clk
0:02:59.8]} 10. Bb3 {[%clk 0:02:57.5]} 10... O-O {[%clk 0:02:59.9]} 11. g4
{[%clk 0:02:56.3]} 11... b5 {[%clk 0:02:58.2]} 12. g5 {[%clk 0:02:54.2]} 12...
Nd7 {[%clk 0:02:58.4]} 13. Rhg1 {[%clk 0:02:47.4]} 13... Nc5 {[%clk 0:02:55.4]}
14. a3 {[%clk 0:02:43.1]} 14... Bb7 {[%clk 0:02:46.8]} 15. Rg3 {[%clk
0:02:42.7]} 15... Rac8 {[%clk 0:02:42.9]} 16. Rh3 {[%clk 0:02:36.3]} 16... h5
{[%clk 0:02:20.5]} 17. Qxh5 {[%clk 0:02:35.1]} 1-0